[Event "44th Chess Olympiad Open 2022"]
[Site "Chennai"]
[Date "2022.08.03"]
[Round "6.86"]
[White "Shaw, Clifford"]
[Black "Kovacova, Zuzana"]
[Result "1/2-1/2"]
[WhiteElo "1615"]
[BlackElo "2050"]
[Annotator "NA RC"]
[PlyCount "93"]
[EventDate "2022.??.??"]
[TimeControl "60"]

1. f4 {[%emt 0:00:02]} g6 {[%emt 0:00:29]} 2. Nf3 {[%emt 0:00:10]} Bg7 {
[%emt 0:00:04]} 3. e3 {[%emt 0:00:06]} d6 {[%emt 0:02:24]} 4. Be2 {[%emt 0:00:
00]} Nf6 {[%emt 0:03:43]} 5. O-O {[%emt 0:00:00]} O-O {[%emt 0:00:35]} 6. d3 {
[%emt 0:00:00]} c5 {[%emt 0:08:02]} 7. e4 {[%emt 0:00:51]} e6 {[%emt 0:01:20]}
8. c3 {[%emt 0:01:40]} Nc6 {[%emt 0:01:45]} 9. a4 {[%emt 0:07:15]} Qb6 {
[%emt 0:19:01]} 10. Kh1 {[%emt 0:06:52]} Bd7 {[%emt 0:08:01]} 11. Qe1 {[%emt 0:
00:00]} Rac8 {[%emt 0:01:43]} 12. Qh4 {[%emt 0:04:29]} Qd8 {[%emt 0:05:35]} 13.
g4 {[%emt 0:02:10]} Ne8 {[%emt 0:07:29]} 14. g5 {[%emt 0:14:02]} f5 {[%emt 0:
00:00]} 15. Nbd2 {[%emt 0:05:02]} e5 {[%emt 0:05:17]} 16. Nc4 {[%emt 0:03:38]}
Be6 {[%emt 0:01:19]} 17. exf5 {[%emt 0:08:09]} Rxf5 {[%emt 0:02:14]} 18. fxe5 {
[%emt 0:01:16]} dxe5 {[%emt 0:03:01]} 19. Be3 {[%emt 0:01:26]} b6 {[%emt 0:00:
00]} 20. Qg3 {[%emt 0:03:26]} Bd5 {[%emt 0:01:00]} 21. Kg1 {[%emt 0:00:27]} Qe7
{[%emt 0:01:53]} 22. Nh4 {[%emt 0:03:16]} Rxf1+ {[%emt 0:00:08]} 23. Rxf1 {
[%emt 0:00:04]} e4 {[%emt 0:02:56]} 24. Qg4 {[%emt 0:12:12]} exd3 {[%emt 0:00:
00]} 25. Bxd3 {[%emt 0:00:05]} Rd8 {[%emt 0:00:05]} 26. Bf4 {[%emt 0:08:56]}
Qe6 {[%emt 0:03:23]} 27. Qxe6+ {[%emt 0:05:09]} Bxe6 {[%emt 0:00:02]} 28. Be2 {
[%emt 0:00:04]} Ne7 {[%emt 0:01:24]} 29. Nf3 {[%emt 0:03:37]} Nf5 {[%emt 0:00:
00]} 30. Nce5 {[%emt 0:01:21]} Bb3 {[%emt 0:00:57]} 31. Ra1 {[%emt 0:02:24]}
Ned6 {[%emt 0:00:21]} 32. a5 {[%emt 0:00:34]} b5 {[%emt 0:00:22]} 33. Nc6 {
[%emt 0:00:50]} Re8 {[%emt 0:01:19]} 34. Nfe5 {[%emt 0:01:53]} a6 {[%emt 0:00:
00]} 35. Re1 {[%emt 0:00:40]} Bd5 {[%emt 0:00:21]} 36. Bf3 {[%emt 0:00:20]}
Bxf3 {[%emt 0:01:34]} 37. Nxf3 {[%emt 0:00:03]} Rxe1+ {[%emt 0:00:31]} 38. Nxe1
{[%emt 0:00:02]} Nc4 {[%emt 0:00:35]} 39. Nd3 {[%emt 0:00:47]} Bf8 {[%emt 0:00:
00]} 40. b3 {[%emt 0:00:14]} Nce3 {[%emt 0:00:41]} 41. Nb8 {[%emt 0:31:18]} c4
{[%emt 0:06:51]} 42. bxc4 {[%emt 0:00:00]} Nxc4 {[%emt 0:02:08]} 43. Nxa6 {
[%emt 0:00:00]} Bg7 {[%emt 0:05:05]} 44. Nc7 {[%emt 0:00:00]} Bxc3 {[%emt 0:00:
00]} 45. a6 {[%emt 0:00:00]} Bd4+ {[%emt 0:01:16]} 46. Kf1 {[%emt 0:00:00]}
Nfd6 {[%emt 0:00:23]} 47. Ke2 {[%emt 0:00:00]} 1/2-1/2

[Event "44th Chess Olympiad Open 2022"]
[Site "Chennai"]
[Date "2022.08.03"]
[Round "6.86"]
[White "Walrond, Niccolo"]
[Black "Swaminathan, Laia"]
[Result "*"]
[WhiteElo "1210"]
[BlackElo "1460"]
[Annotator "NA RC"]
[PlyCount "108"]
[EventDate "2022.??.??"]
[TimeControl "60"]

1. e4 {[%emt 0:00:02]} e5 {[%emt 0:00:13]} 2. Nf3 {[%emt 0:00:17]} Nc6 {
[%emt 0:00:10]} 3. Bc4 {[%emt 0:00:23]} Bc5 {[%emt 0:00:10]} 4. c3 {[%emt 0:00:
00]} Qe7 {[%emt 0:00:39]} 5. O-O {[%emt 0:01:48]} d6 {[%emt 0:01:10]} 6. d3 {
[%emt 0:09:05]} h6 {[%emt 0:02:53]} 7. Re1 {[%emt 0:05:56]} Nf6 {[%emt 0:03:36]
} 8. Nbd2 {[%emt 0:07:01]} O-O {[%emt 0:03:12]} 9. a4 {[%emt 0:04:07]} a5 {
[%emt 0:04:51]} 10. Nf1 {[%emt 0:03:04]} Bg4 {[%emt 0:08:00]} 11. Be3 {[%emt 0:
00:00]} Bxe3 {[%emt 0:06:01]} 12. Nxe3 {[%emt 0:00:44]} Qd7 {[%emt 0:02:49]}
13. h3 {[%emt 0:03:15]} Be6 {[%emt 0:03:07]} 14. Ba2 {[%emt 0:05:54]} Ne7 {
[%emt 0:05:00]} 15. Nh4 {[%emt 0:04:14]} Ng6 {[%emt 0:04:17]} 16. Bxe6 {
[%emt 0:02:18]} Qxe6 {[%emt 0:00:09]} 17. Nef5 {[%emt 0:01:09]} Nxh4 {[%emt 0:
00:00]} 18. Nxh4 {[%emt 0:00:15]} g6 {[%emt 0:00:33]} 19. d4 {[%emt 0:05:13]}
c6 {[%emt 0:04:15]} 20. Qd3 {[%emt 0:11:28]} Rfd8 {[%emt 0:07:32]} 21. Qg3 {
[%emt 0:03:25]} Nh5 {[%emt 0:06:24]} 22. Qh2 {[%emt 0:02:30]} Nf4 {[%emt 0:00:
00]} 23. Re3 {[%emt 0:08:13]} exd4 {[%emt 0:06:49]} 24. cxd4 {[%emt 0:00:42]}
Qf6 {[%emt 0:02:02]} 25. Rf3 {[%emt 0:03:43]} Ne2+ {[%emt 0:00:37]} 26. Kf1 {
[%emt 0:00:34]} Qxh4 {[%emt 0:00:10]} 27. Kxe2 {[%emt 0:01:33]} Qxe4+ {[%emt 0:
00:00]} 28. Kf1 {[%emt 0:01:18]} Qxd4 {[%emt 0:00:40]} 29. Rf4 {[%emt 0:00:44]}
Qxb2 {[%emt 0:01:46]} 30. Re1 {[%emt 0:00:26]} Re8 {[%emt 0:00:54]} 31. Rfe4 {
[%emt 0:00:09]} Rxe4 {[%emt 0:00:35]} 32. Rxe4 {[%emt 0:00:05]} Qc1+ {[%emt 0:
00:00]} 33. Ke2 {[%emt 0:00:16]} Qc2+ {[%emt 0:01:48]} 34. Ke3 {[%emt 0:00:11]}
Qc5+ {[%emt 0:00:39]} 35. Kf3 {[%emt 0:03:17]} Kf8 {[%emt 0:01:01]} 36. Qf4 {
[%emt 0:00:18]} Qf5 {[%emt 0:00:50]} 37. g4 {[%emt 0:00:30]} Qxf4+ {[%emt 0:00:
00]} 38. Kxf4 {[%emt 0:00:06]} Rd8 {[%emt 0:00:20]} 39. h4 {[%emt 0:00:29]} d5
{[%emt 0:00:13]} 40. Rd4 {[%emt 0:00:16]} c5 {[%emt 0:00:09]} 41. Rd3 {[%emt 0:
00:00]} c4 {[%emt 0:30:19]} 42. Rc3 {[%emt 0:00:34]} d4 {[%emt 0:00:48]} 43.
Rxc4 {[%emt 0:00:18]} d3 {[%emt 0:00:09]} 44. Rc1 {[%emt 0:00:09]} d2 {[%emt 0:
00:00]} 45. Rd1 {[%emt 0:00:16]} Ke7 {[%emt 0:00:21]} 46. Ke3 {[%emt 0:00:07]}
Ke6 {[%emt 0:00:15]} 47. f4 {[%emt 0:05:43]} f5 {[%emt 0:00:36]} 48. g5 {
[%emt 0:00:19]} h5 {[%emt 0:01:24]} 49. Rxd2 {[%emt 0:00:15]} Rxd2 {[%emt 0:00:
00]} 50. Kxd2 {[%emt 0:00:14]} Kd5 {[%emt 0:00:10]} 51. Kd3 {[%emt 0:01:10]} b6
{[%emt 0:00:07]} 52. Kc3 {[%emt 0:01:18]} Ke4 {[%emt 0:00:32]} 53. Kc4 {
[%emt 0:00:09]} Kxf4 {[%emt 0:00:11]} 54. Kb5 {[%emt 0:00:13]} Ke3 {[%emt 0:00:
00]} *

[Event "44th Chess Olympiad Open 2022"]
[Site "Chennai"]
[Date "2022.08.03"]
[Round "6.87"]
[White "Stratonowitsch, Andre"]
[Black "Moncur, Cecil"]
[Result "1-0"]
[WhiteElo "2142"]
[BlackElo "1815"]
[Annotator "NA RC"]
[PlyCount "139"]
[EventDate "2022.??.??"]
[TimeControl "60"]

1. e4 {[%emt 0:00:06]} c5 {[%emt 0:00:09]} 2. Nf3 {[%emt 0:00:05]} e6 {[%emt 0:
00:00]} 3. d4 {[%emt 0:00:05]} cxd4 {[%emt 0:00:08]} 4. Nxd4 {[%emt 0:00:04]}
Nf6 {[%emt 0:00:23]} 5. Nc3 {[%emt 0:00:26]} Nc6 {[%emt 0:00:14]} 6. Ndb5 {
[%emt 0:00:52]} Bb4 {[%emt 0:00:14]} 7. a3 {[%emt 0:00:09]} Bxc3+ {[%emt 0:00:
00]} 8. Nxc3 {[%emt 0:00:15]} d5 {[%emt 0:00:20]} 9. exd5 {[%emt 0:00:15]} exd5
{[%emt 0:00:17]} 10. Bd3 {[%emt 0:00:16]} O-O {[%emt 0:00:19]} 11. O-O {
[%emt 0:00:25]} d4 {[%emt 0:00:25]} 12. Ne2 {[%emt 0:00:30]} Qb6 {[%emt 0:00:
00]} 13. h3 {[%emt 0:01:30]} Bd7 {[%emt 0:00:48]} 14. b4 {[%emt 0:01:32]} Ne5 {
[%emt 0:00:57]} 15. Bb2 {[%emt 0:19:42]} Nxd3 {[%emt 0:04:25]} 16. cxd3 {
[%emt 0:00:23]} Bf5 {[%emt 0:07:11]} 17. Nxd4 {[%emt 0:11:20]} Bg6 {[%emt 0:00:
00]} 18. Qf3 {[%emt 0:04:54]} a5 {[%emt 0:03:16]} 19. Nf5 {[%emt 0:11:10]} axb4
{[%emt 0:01:47]} 20. axb4 {[%emt 0:00:22]} Bxf5 {[%emt 0:09:08]} 21. Qxf5 {
[%emt 0:00:32]} Rxa1 {[%emt 0:01:02]} 22. Rxa1 {[%emt 0:00:41]} Qxb4 {[%emt 0:
00:00]} 23. Bxf6 {[%emt 0:01:45]} gxf6 {[%emt 0:00:10]} 24. Qxf6 {[%emt 0:00:
00]} Re8 {[%emt 0:01:13]} 25. Kh2 {[%emt 0:16:54]} Qe7 {[%emt 0:01:16]} 26. Qf4
{[%emt 0:07:51]} Qe5 {[%emt 0:03:43]} 27. Qxe5 {[%emt 0:00:32]} Rxe5 {[%emt 0:
00:00]} 28. Rb1 {[%emt 0:00:51]} Rd5 {[%emt 0:03:56]} 29. Rb3 {[%emt 0:00:33]}
Kg7 {[%emt 0:00:35]} 30. Kg3 {[%emt 0:00:06]} Kg6 {[%emt 0:00:38]} 31. f4 {
[%emt 0:05:51]} b5 {[%emt 0:00:46]} 32. Kf3 {[%emt 0:00:18]} f5 {[%emt 0:00:33]
} 33. Ke3 {[%emt 0:00:50]} h5 {[%emt 0:03:25]} 34. Ra3 {[%emt 0:04:26]} b4 {
[%emt 0:01:09]} 35. Ra6+ {[%emt 0:00:15]} Kh7 {[%emt 0:02:40]} 36. Rb6 {
[%emt 0:00:02]} Ra5 {[%emt 0:02:58]} 37. Rxb4 {[%emt 0:00:24]} Ra2 {[%emt 0:00:
00]} 38. Kf3 {[%emt 0:01:04]} h4 {[%emt 0:00:56]} 39. Rb8 {[%emt 0:04:42]} Kg7
{[%emt 0:00:43]} 40. Rd8 {[%emt 0:00:14]} Rd2 {[%emt 0:00:28]} 41. Rd6 {
[%emt 0:31:02]} Kf7 {[%emt 0:30:54]} 42. Rh6 {[%emt 0:00:00]} Rxd3+ {[%emt 0:
00:00]} 43. Ke2 {[%emt 0:01:10]} Rg3 {[%emt 0:00:00]} 44. Kf2 {[%emt 0:00:00]}
Ra3 {[%emt 0:00:00]} 45. Rxh4 {[%emt 0:00:00]} Ra2+ {[%emt 0:00:00]} 46. Kg3 {
[%emt 0:00:00]} Ra3+ {[%emt 0:00:00]} 47. Kh2 {[%emt 0:00:00]} Ra2 {[%emt 0:00:
00]} 48. Rh8 {[%emt 0:00:00]} Ra3 {[%emt 0:00:00]} 49. Rd8 {[%emt 0:00:00]} Kg6
{[%emt 0:00:00]} 50. Rd2 {[%emt 0:00:00]} Kh5 {[%emt 0:00:00]} 51. Rd6 {
[%emt 0:00:00]} Ra4 {[%emt 0:00:00]} 52. Kg3 {[%emt 0:00:00]} Ra3+ {[%emt 0:00:
00]} 53. Kf2 {[%emt 0:00:00]} Ra2+ {[%emt 0:00:00]} 54. Kf3 {[%emt 0:00:00]}
Ra3+ {[%emt 0:00:00]} 55. Ke2 {[%emt 0:00:00]} Ra2+ {[%emt 0:00:00]} 56. Rd2 {
[%emt 0:00:00]} Ra3 {[%emt 0:00:00]} 57. Rd3 {[%emt 0:00:00]} Ra2+ {[%emt 0:00:
00]} 58. Kf3 {[%emt 0:00:00]} Kh4 {[%emt 0:00:00]} 59. g4 {[%emt 0:00:00]} Kxh3
{[%emt 0:00:00]} 60. gxf5 {[%emt 0:00:00]} Ra4 {[%emt 0:00:00]} 61. Rd7 {
[%emt 0:02:45]} Ra3+ {[%emt 0:00:00]} 62. Ke4 {[%emt 0:00:11]} Ra4+ {[%emt 0:
00:00]} 63. Ke5 {[%emt 0:00:41]} Ra5+ {[%emt 0:00:00]} 64. Ke6 {[%emt 0:00:55]}
Kg4 {[%emt 0:00:00]} 65. f6 {[%emt 0:00:14]} Kxf4 {[%emt 0:00:00]} 66. f7 {
[%emt 0:00:31]} Re5+ {[%emt 0:00:00]} 67. Kf6 {[%emt 0:00:13]} Rf5+ {[%emt 0:
00:00]} 68. Ke7 {[%emt 0:00:07]} Re5+ {[%emt 0:00:00]} 69. Kd8 {[%emt 0:00:13]}
Rf5 {[%emt 0:00:30]} 70. Ke8 {[%emt 0:00:09]} 1-0

[Event "44th Chess Olympiad Open 2022"]
[Site "Chennai"]
[Date "2022.08.03"]
[Round "6.87"]
[White "Pillay, Ragul"]
[Black "Karelina, Polina"]
[Result "0-1"]
[WhiteElo "1341"]
[BlackElo "1835"]
[Annotator "NA RC"]
[PlyCount "104"]
[EventDate "2022.??.??"]
[TimeControl "60"]

1. d4 {[%emt 0:00:05]} Nf6 {[%emt 0:00:20]} 2. c4 {[%emt 0:00:20]} g6 {[%emt 0:
00:00]} 3. Nc3 {[%emt 0:00:10]} Bg7 {[%emt 0:00:14]} 4. e4 {[%emt 0:00:08]} d6
{[%emt 0:00:14]} 5. Nf3 {[%emt 0:00:09]} O-O {[%emt 0:01:14]} 6. Be2 {[%emt 0:
00:00]} Nbd7 {[%emt 0:01:14]} 7. O-O {[%emt 0:00:35]} e5 {[%emt 0:01:02]} 8.
dxe5 {[%emt 0:03:09]} Nxe5 {[%emt 0:02:10]} 9. Nxe5 {[%emt 0:00:57]} dxe5 {
[%emt 0:00:07]} 10. Qc2 {[%emt 0:00:41]} c6 {[%emt 0:01:04]} 11. h3 {[%emt 0:
00:00]} Be6 {[%emt 0:03:08]} 12. Be3 {[%emt 0:01:52]} Qc7 {[%emt 0:03:15]} 13.
Rad1 {[%emt 0:02:58]} a6 {[%emt 0:03:28]} 14. Na4 {[%emt 0:03:16]} Nd7 {
[%emt 0:05:37]} 15. Rd2 {[%emt 0:02:35]} Rac8 {[%emt 0:03:27]} 16. Rfd1 {
[%emt 0:04:20]} b5 {[%emt 0:02:24]} 17. Nc5 {[%emt 0:02:41]} Nxc5 {[%emt 0:00:
00]} 18. Bxc5 {[%emt 0:01:46]} Rfd8 {[%emt 0:01:00]} 19. b3 {[%emt 0:09:42]}
Rxd2 {[%emt 0:02:44]} 20. Qxd2 {[%emt 0:02:38]} Bf6 {[%emt 0:04:13]} 21. Qe3 {
[%emt 0:09:42]} Rd8 {[%emt 0:08:00]} 22. Rc1 {[%emt 0:02:24]} Rd7 {[%emt 0:00:
00]} 23. cxb5 {[%emt 0:03:15]} axb5 {[%emt 0:05:15]} 24. Bb4 {[%emt 0:03:17]}
Qb7 {[%emt 0:01:45]} 25. Qc5 {[%emt 0:02:24]} Be7 {[%emt 0:02:44]} 26. Qc3 {
[%emt 0:03:51]} Bxb4 {[%emt 0:05:50]} 27. Qxb4 {[%emt 0:00:10]} f6 {[%emt 0:00:
00]} 28. Rc2 {[%emt 0:08:11]} Rd4 {[%emt 0:05:43]} 29. Qc5 {[%emt 0:01:47]}
Rxe4 {[%emt 0:03:10]} 30. Bf3 {[%emt 0:00:15]} Re1+ {[%emt 0:00:21]} 31. Kh2 {
[%emt 0:00:12]} e4 {[%emt 0:00:29]} 32. Be2 {[%emt 0:01:21]} f5 {[%emt 0:09:19]
} 33. Qc3 {[%emt 0:05:06]} Rb1 {[%emt 0:02:50]} 34. Qxc6 {[%emt 0:00:59]} Qxc6
{[%emt 0:00:31]} 35. Rxc6 {[%emt 0:00:10]} Bd7 {[%emt 0:00:46]} 36. Rc2 {
[%emt 0:03:58]} Kf7 {[%emt 0:01:31]} 37. Kg3 {[%emt 0:00:54]} Kf6 {[%emt 0:00:
00]} 38. f3 {[%emt 0:01:31]} Ke5 {[%emt 0:02:29]} 39. fxe4 {[%emt 0:03:41]}
fxe4 {[%emt 0:00:47]} 40. Bxb5 {[%emt 0:01:59]} Bxb5 {[%emt 0:00:55]} 41. Rc5+
{[%emt 0:33:21]} Kd4 {[%emt 0:30:46]} 42. Rxb5 {[%emt 0:00:24]} Rf1 {[%emt 0:
00:00]} 43. Rb4+ {[%emt 0:00:00]} Kd3 {[%emt 0:00:00]} 44. Rb8 {[%emt 0:00:00]}
e3 {[%emt 0:00:00]} 45. Rd8+ {[%emt 0:00:00]} Kc2 {[%emt 0:00:00]} 46. Rc8+ {
[%emt 0:00:00]} Kd2 {[%emt 0:00:00]} 47. Rd8+ {[%emt 0:00:00]} Ke1 {[%emt 0:00:
00]} 48. a4 {[%emt 0:00:00]} e2 {[%emt 0:00:00]} 49. Kh2 {[%emt 0:00:00]} Kf2 {
[%emt 0:00:00]} 50. Rd2 {[%emt 0:00:00]} Rb1 {[%emt 0:00:00]} 51. a5 {[%emt 0:
00:00]} Rxb3 {[%emt 0:00:00]} 52. a6 {[%emt 0:00:00]} Ra3 {[%emt 0:00:00]} 0-1

[Event "44th Chess Olympiad Open 2022"]
[Site "Chennai"]
[Date "2022.08.03"]
[Round "6.87"]
[White "Albury, Noah"]
[Black "Ramachandran, R..."]
[Result "1-0"]
[WhiteElo "1324"]
[BlackElo "1994"]
[Annotator "NA RC"]
[PlyCount "65"]
[EventDate "2022.??.??"]
[TimeControl "60"]

1. e4 {[%emt 0:00:02]} e5 {[%emt 0:00:14]} 2. Nf3 {[%emt 0:00:05]} d6 {[%emt 0:
00:00]} 3. d4 {[%emt 0:00:40]} Bg4 {[%emt 0:01:54]} 4. dxe5 {[%emt 0:02:14]}
Bxf3 {[%emt 0:01:35]} 5. Qxf3 {[%emt 0:00:12]} dxe5 {[%emt 0:00:49]} 6. Bc4 {
[%emt 0:00:51]} Nf6 {[%emt 0:00:59]} 7. Qb3 {[%emt 0:05:04]} Qd7 {[%emt 0:00:
00]} 8. Qxb7 {[%emt 0:03:54]} Qc6 {[%emt 0:00:59]} 9. Bb5 {[%emt 0:01:09]} Qxb5
{[%emt 0:09:12]} 10. Qxb5+ {[%emt 0:00:09]} Nbd7 {[%emt 0:00:48]} 11. Nc3 {
[%emt 0:02:43]} Bd6 {[%emt 0:00:56]} 12. O-O {[%emt 0:04:45]} O-O {[%emt 0:00:
00]} 13. Qd3 {[%emt 0:02:17]} Rad8 {[%emt 0:09:08]} 14. Bg5 {[%emt 0:04:21]}
Nc5 {[%emt 0:02:45]} 15. Qg3 {[%emt 0:02:09]} Ncxe4 {[%emt 0:03:06]} 16. Nxe4 {
[%emt 0:02:08]} Nxe4 {[%emt 0:08:40]} 17. Qh4 {[%emt 0:00:36]} Nxg5 {[%emt 0:
00:00]} 18. Qxg5 {[%emt 0:00:15]} f6 {[%emt 0:00:47]} 19. Qe3 {[%emt 0:00:46]}
a6 {[%emt 0:02:00]} 20. c4 {[%emt 0:00:24]} Rb8 {[%emt 0:04:19]} 21. c5 {
[%emt 0:00:50]} Be7 {[%emt 0:01:32]} 22. b3 {[%emt 0:00:31]} Rb5 {[%emt 0:00:
00]} 23. Rac1 {[%emt 0:00:46]} Rd8 {[%emt 0:01:32]} 24. Rfd1 {[%emt 0:00:47]}
Rxd1+ {[%emt 0:01:01]} 25. Rxd1 {[%emt 0:00:04]} Rxc5 {[%emt 0:01:05]} 26. b4 {
[%emt 0:01:59]} Rb5 {[%emt 0:01:19]} 27. Qb3+ {[%emt 0:00:38]} Kf8 {[%emt 0:00:
00]} 28. Rd7 {[%emt 0:01:36]} Rxb4 {[%emt 0:09:24]} 29. Rd8+ {[%emt 0:00:16]}
Bxd8 {[%emt 0:03:22]} 30. Qxb4+ {[%emt 0:00:06]} Be7 {[%emt 0:01:33]} 31. Qa4 {
[%emt 0:00:29]} Bc5 {[%emt 0:01:06]} 32. Qxa6 {[%emt 0:00:25]} Ke8 {[%emt 0:00:
00]} 33. Qc8+ {[%emt 0:00:20]} 1-0

[Event "44th Chess Olympiad Open 2022"]
[Site "Chennai"]
[Date "2022.08.03"]
[Round "6.88"]
[White "Enemchukwu Chinedu Benjamin"]
[Black "Depaune, Ricko"]
[Result "1-0"]
[WhiteElo "1889"]
[BlackElo "1726"]
[Annotator "NA RC"]
[PlyCount "92"]
[EventDate "2022.??.??"]
[TimeControl "60"]

1. e4 {[%emt 0:00:03]} e5 {[%emt 0:00:05]} 2. d4 {[%emt 0:00:05]} exd4 {
[%emt 0:00:03]} 3. c3 {[%emt 0:00:08]} c5 {[%emt 0:04:10]} 4. Nf3 {[%emt 0:00:
00]} Nc6 {[%emt 0:02:38]} 5. Bc4 {[%emt 0:02:25]} Be7 {[%emt 0:03:49]} 6. Qb3 {
[%emt 0:00:35]} Na5 {[%emt 0:00:55]} 7. Bxf7+ {[%emt 0:00:12]} Kf8 {[%emt 0:00:
00]} 8. Qd1 {[%emt 0:04:42]} Kxf7 {[%emt 0:02:00]} 9. cxd4 {[%emt 0:00:09]} d5
{[%emt 0:01:38]} 10. e5 {[%emt 0:02:12]} g6 {[%emt 0:00:16]} 11. O-O {[%emt 0:
00:00]} Nc6 {[%emt 0:00:08]} 12. dxc5 {[%emt 0:00:38]} h6 {[%emt 0:02:38]} 13.
Be3 {[%emt 0:03:00]} Be6 {[%emt 0:03:11]} 14. Nc3 {[%emt 0:00:32]} Qd7 {
[%emt 0:00:40]} 15. Nb5 {[%emt 0:01:40]} a6 {[%emt 0:00:58]} 16. Nd6+ {[%emt 0:
00:00]} Kg7 {[%emt 0:00:24]} 17. Qd2 {[%emt 0:04:37]} b6 {[%emt 0:00:26]} 18.
b4 {[%emt 0:03:18]} b5 {[%emt 0:01:25]} 19. Rfd1 {[%emt 0:02:40]} Bf8 {[%emt 0:
00:00]} 20. Ne1 {[%emt 0:04:26]} Nge7 {[%emt 0:00:30]} 21. f4 {[%emt 0:02:13]}
Nf5 {[%emt 0:00:06]} 22. Bf2 {[%emt 0:00:59]} Kh7 {[%emt 0:01:41]} 23. Nc2 {
[%emt 0:01:52]} Bg7 {[%emt 0:05:23]} 24. Re1 {[%emt 0:04:46]} Nxd6 {[%emt 0:00:
00]} 25. cxd6 {[%emt 0:00:20]} Rhc8 {[%emt 0:00:25]} 26. Bc5 {[%emt 0:00:26]}
Rf8 {[%emt 0:01:12]} 27. Rf1 {[%emt 0:04:52]} Rac8 {[%emt 0:02:24]} 28. Ne3 {
[%emt 0:01:10]} Qf7 {[%emt 0:03:29]} 29. a4 {[%emt 0:00:53]} d4 {[%emt 0:04:50]
} 30. Bxd4 {[%emt 0:03:52]} Nxd4 {[%emt 0:00:18]} 31. Qxd4 {[%emt 0:00:38]}
Rfd8 {[%emt 0:01:09]} 32. axb5 {[%emt 0:01:13]} axb5 {[%emt 0:00:04]} 33. Ra7 {
[%emt 0:00:40]} Rxd6 {[%emt 0:05:39]} 34. Qxd6 {[%emt 0:04:35]} Qxa7 {[%emt 0:
00:00]} 35. Kf2 {[%emt 0:01:44]} Rc2+ {[%emt 0:03:47]} 36. Kf3 {[%emt 0:00:42]}
Qb7+ {[%emt 0:00:29]} 37. Kg3 {[%emt 0:00:48]} Rc6 {[%emt 0:00:14]} 38. Qd2 {
[%emt 0:03:16]} Qc7 {[%emt 0:04:51]} 39. h3 {[%emt 0:00:35]} g5 {[%emt 0:01:26]
} 40. fxg5 {[%emt 0:04:04]} Qxe5+ {[%emt 0:04:01]} 41. Kf2 {[%emt 0:30:46]} Rc3
{[%emt 0:32:24]} 42. Re1 {[%emt 0:01:09]} Qf4+ {[%emt 0:00:17]} 43. Ke2 {
[%emt 0:01:30]} Bd4 {[%emt 0:00:04]} 44. g6+ {[%emt 0:01:27]} Kxg6 {[%emt 0:00:
00]} 45. Nc2 {[%emt 0:01:04]} Bc4+ {[%emt 0:00:03]} 46. Kd1 {[%emt 0:00:27]}
Rd3 {[%emt 0:00:01]} 1-0

[Event "44th Chess Olympiad Open 2022"]
[Site "Chennai"]
[Date "2022.08.03"]
[Round "6.92"]
[White "Senglek, Khonsavanh"]
[Black "Koualet-Bebondi, Vianney Archeveq"]
[Result "0-1"]
[WhiteElo "1253"]
[BlackElo "1679"]
[Annotator "NA RC"]
[PlyCount "152"]
[EventDate "2022.??.??"]
[TimeControl "60"]

1. e4 {[%emt 0:00:35]} e5 {[%emt 0:00:20]} 2. Nf3 {[%emt 0:00:32]} Nc6 {
[%emt 0:01:07]} 3. Bc4 {[%emt 0:00:27]} Bc5 {[%emt 0:01:26]} 4. c3 {[%emt 0:00:
00]} Nf6 {[%emt 0:00:39]} 5. d4 {[%emt 0:00:15]} Bb6 {[%emt 0:01:47]} 6. Bg5 {
[%emt 0:00:18]} h6 {[%emt 0:01:46]} 7. Bxf6 {[%emt 0:00:11]} Qxf6 {[%emt 0:00:
00]} 8. d5 {[%emt 0:01:31]} Na5 {[%emt 0:00:45]} 9. Na3 {[%emt 0:00:23]} Nxc4 {
[%emt 0:00:57]} 10. Nxc4 {[%emt 0:00:13]} d6 {[%emt 0:00:14]} 11. Nxb6 {
[%emt 0:00:28]} axb6 {[%emt 0:00:12]} 12. h3 {[%emt 0:00:31]} Bd7 {[%emt 0:00:
00]} 13. Qd3 {[%emt 0:00:54]} O-O {[%emt 0:00:20]} 14. O-O {[%emt 0:00:12]} Ra5
{[%emt 0:00:30]} 15. Rfc1 {[%emt 0:02:17]} Rfa8 {[%emt 0:00:51]} 16. a3 {
[%emt 0:02:12]} Qg6 {[%emt 0:03:29]} 17. Nd2 {[%emt 0:02:17]} f5 {[%emt 0:00:
00]} 18. Qg3 {[%emt 0:00:50]} Qxg3 {[%emt 0:01:43]} 19. fxg3 {[%emt 0:00:07]}
fxe4 {[%emt 0:00:11]} 20. Nxe4 {[%emt 0:01:02]} Rxd5 {[%emt 0:00:21]} 21. g4 {
[%emt 0:01:21]} Bc6 {[%emt 0:00:38]} 22. Re1 {[%emt 0:02:52]} Rd3 {[%emt 0:00:
00]} 23. Nf2 {[%emt 0:31:30]} Rd2 {[%emt 0:00:18]} 24. b3 {[%emt 0:00:14]} Rf8
{[%emt 0:01:11]} 25. Rf1 {[%emt 0:01:15]} e4 {[%emt 0:00:34]} 26. Rad1 {
[%emt 0:02:43]} Rxd1 {[%emt 0:01:48]} 27. Nxd1 {[%emt 0:00:50]} Re8 {[%emt 0:
00:00]} 28. Ne3 {[%emt 0:00:18]} g6 {[%emt 0:02:11]} 29. Rf4 {[%emt 0:05:27]}
Re5 {[%emt 0:00:57]} 30. Rf1 {[%emt 0:01:46]} b5 {[%emt 0:00:57]} 31. Kf2 {
[%emt 0:01:06]} Bd7 {[%emt 0:00:16]} 32. b4 {[%emt 0:01:19]} b6 {[%emt 0:00:26]
} 33. Rd1 {[%emt 0:01:22]} Be6 {[%emt 0:00:15]} 34. Rd4 {[%emt 0:01:25]} d5 {
[%emt 0:02:33]} 35. Kg3 {[%emt 0:00:43]} g5 {[%emt 0:01:26]} 36. Kf2 {[%emt 0:
00:00]} c5 {[%emt 0:00:10]} 37. Rd1 {[%emt 0:00:36]} Kf7 {[%emt 0:00:17]} 38.
g3 {[%emt 0:01:38]} Ke7 {[%emt 0:00:13]} 39. h4 {[%emt 0:02:45]} Kf6 {[%emt 0:
00:00]} 40. Ke2 {[%emt 0:00:27]} Ke7 {[%emt 0:01:43]} 41. Kf2 {[%emt 0:30:30]}
Kd6 {[%emt 0:30:55]} 42. Ke2 {[%emt 0:01:50]} Kc6 {[%emt 0:00:10]} 43. Kf2 {
[%emt 0:00:28]} Bf7 {[%emt 0:02:15]} 44. Ke2 {[%emt 0:00:26]} Re7 {[%emt 0:00:
00]} 45. Nf5 {[%emt 0:01:06]} Re6 {[%emt 0:00:37]} 46. h5 {[%emt 0:00:36]} Bg8
{[%emt 0:01:11]} 47. Ke3 {[%emt 0:00:59]} Bh7 {[%emt 0:01:07]} 48. Rf1 {
[%emt 0:00:30]} Bxf5 {[%emt 0:01:14]} 49. gxf5 {[%emt 0:00:08]} Rf6 {[%emt 0:
00:00]} 50. g4 {[%emt 0:00:10]} Kd6 {[%emt 0:00:08]} 51. Rd1 {[%emt 0:00:44]}
Ke5 {[%emt 0:00:27]} 52. Rd2 {[%emt 0:05:17]} Rd6 {[%emt 0:00:11]} 53. bxc5 {
[%emt 0:00:11]} bxc5 {[%emt 0:00:38]} 54. Rb2 {[%emt 0:00:01]} d4+ {[%emt 0:00:
00]} 55. cxd4+ {[%emt 0:00:02]} cxd4+ {[%emt 0:00:52]} 56. Ke2 {[%emt 0:00:18]}
Rd5 {[%emt 0:00:39]} 57. Rb1 {[%emt 0:00:33]} Kf4 {[%emt 0:02:44]} 58. f6 {
[%emt 0:00:07]} Kxg4 {[%emt 0:02:03]} 59. f7 {[%emt 0:03:06]} Rd8 {[%emt 0:00:
00]} 60. Rxb5 {[%emt 0:00:17]} Kxh5 {[%emt 0:00:19]} 61. Re5 {[%emt 0:00:15]}
Rf8 {[%emt 0:01:52]} 62. Rxe4 {[%emt 0:00:08]} Rxf7 {[%emt 0:00:33]} 63. Rxd4 {
[%emt 0:00:06]} g4 {[%emt 0:00:06]} 64. Rd1 {[%emt 0:00:55]} g3 {[%emt 0:00:22]
} 65. Rf1 {[%emt 0:00:26]} Ra7 {[%emt 0:01:01]} 66. Rf3 {[%emt 0:00:18]} Kg4 {
[%emt 0:00:14]} 67. Rf6 {[%emt 0:00:59]} h5 {[%emt 0:00:18]} 68. Kf1 {[%emt 0:
00:00]} Rxa3 {[%emt 0:00:48]} 69. Kg2 {[%emt 0:00:44]} Ra2+ {[%emt 0:00:11]}
70. Kg1 {[%emt 0:00:10]} Kh3 {[%emt 0:01:03]} 71. Rf1 {[%emt 0:00:09]} Ra3 {
[%emt 0:01:33]} 72. Rc1 {[%emt 0:00:17]} Kg4 {[%emt 0:02:48]} 73. Rf1 {[%emt 0:
00:00]} h4 {[%emt 0:01:08]} 74. Rb1 {[%emt 0:00:10]} h3 {[%emt 0:00:00]} 75.
Rf1 {[%emt 0:01:16]} h2+ {[%emt 0:01:59]} 76. Kh1 {[%emt 0:00:08]} Kh3 {
[%emt 0:28:04]} 0-1